[Event "Late-Titled-Tuesday-Blitz-September-05-2023"]
[Site "Chess.com"]
[Date "2023.09.05"]
[Round "6"]
[White "lachesisQ"]
[Black "bascheyaro"]
[Result "1-0"]
[WhiteElo "3079"]
[BlackElo "2813"]
[TimeControl "180+1"]
[EndTime "15:05:06 PDT"]
[Termination "lachesisQ won by resignation"]

1. d4 {[%clk 0:03:00.9]} 1... d5 {[%clk 0:03:00.1]} 2. c4 {[%clk 0:03:00.9]}
2... c6 {[%clk 0:03:00.5]} 3. Nf3 {[%clk 0:03:00.6]} 3... Nf6 {[%clk 0:03:00.8]}
4. e3 {[%clk 0:03:01]} 4... a6 {[%clk 0:03:00.9]} 5. Nc3 {[%clk 0:02:59.2]} 5...
Bf5 {[%clk 0:02:58.4]} 6. Nh4 {[%clk 0:02:52.6]} 6... Be6 {[%clk 0:02:58.3]} 7.
c5 {[%clk 0:02:44.9]} 7... Ne4 {[%clk 0:02:52.8]} 8. Bd3 {[%clk 0:02:34.7]} 8...
f5 {[%clk 0:02:30.7]} 9. O-O {[%clk 0:02:30.5]} 9... g6 {[%clk 0:02:26.3]} 10.
Qb3 {[%clk 0:02:15.9]} 10... Bc8 {[%clk 0:02:26.1]} 11. f3 {[%clk 0:02:05.9]}
11... Nxc3 {[%clk 0:02:26.1]} 12. bxc3 {[%clk 0:02:05.7]} 12... e5 {[%clk
0:02:08.8]} 13. g3 {[%clk 0:02:05.3]} 13... Be7 {[%clk 0:02:09.2]} 14. e4 {[%clk
0:02:01.9]} 14... Bxh4 {[%clk 0:02:04.6]} 15. gxh4 {[%clk 0:02:01.2]} 15... exd4
{[%clk 0:01:40.5]} 16. Bg5 {[%clk 0:01:54.6]} 16... Qd7 {[%clk 0:01:31.3]} 17.
exd5 {[%clk 0:01:54]} 17... cxd5 {[%clk 0:00:31]} 18. Rae1+ {[%clk 0:01:53.3]}
18... Kf8 {[%clk 0:00:31.5]} 19. Re7 {[%clk 0:01:43]} 19... Qxe7 {[%clk
0:00:31.3]} 20. Bxe7+ {[%clk 0:01:42.9]} 20... Kxe7 {[%clk 0:00:32.2]} 21. Qxd5
{[%clk 0:01:38.9]} 21... Nc6 {[%clk 0:00:32.2]} 22. Bc4 {[%clk 0:01:27.9]} 22...
Bd7 {[%clk 0:00:30.9]} 23. Qd6+ {[%clk 0:01:24.4]} 23... Kd8 {[%clk 0:00:30.2]}
24. Be6 {[%clk 0:01:24.2]} 24... Nb8 {[%clk 0:00:27.4]} 1-0

[Event "Late-Titled-Tuesday-Blitz-September-05-2023"]
[Site "Chess.com"]
[Date "2023.09.05"]
[Round "6"]
[White "bazar-wokzal"]
[Black "zozik"]
[Result "1-0"]
[WhiteElo "2521"]
[BlackElo "2378"]
[TimeControl "180+1"]
[EndTime "15:05:22 PDT"]
[Termination "bazar-wokzal won by resignation"]

1. e4 {[%clk 0:02:38.3]} 1... e6 {[%clk 0:02:58.9]} 2. c4 {[%clk 0:02:37.7]}
2... d5 {[%clk 0:02:57.3]} 3. cxd5 {[%clk 0:02:37.8]} 3... exd5 {[%clk
0:02:58.1]} 4. Qb3 {[%clk 0:02:38.1]} 4... dxe4 {[%clk 0:02:54.2]} 5. Bc4 {[%clk
0:02:37.6]} 5... Qe7 {[%clk 0:02:51.5]} 6. Nc3 {[%clk 0:02:36.7]} 6... Nf6
{[%clk 0:02:50.9]} 7. d3 {[%clk 0:02:34.1]} 7... exd3+ {[%clk 0:02:49.2]} 8. Be3
{[%clk 0:02:34]} 8... Nc6 {[%clk 0:02:45.8]} 9. O-O-O {[%clk 0:02:33.6]} 9...
Ne5 {[%clk 0:02:35.8]} 10. Nf3 {[%clk 0:02:01.3]} 10... Nxc4 {[%clk 0:02:31.2]}
11. Qxc4 {[%clk 0:02:00.8]} 11... Be6 {[%clk 0:02:31.1]} 12. Qxd3 {[%clk
0:01:57.2]} 12... Rd8 {[%clk 0:02:17.1]} 13. Qb5+ {[%clk 0:01:49.9]} 13... c6
{[%clk 0:02:17.1]} 14. Rxd8+ {[%clk 0:01:48.7]} 14... Qxd8 {[%clk 0:02:12.1]}
15. Qxb7 {[%clk 0:01:47.4]} 15... Qd7 {[%clk 0:02:08.4]} 16. Qa8+ {[%clk
0:01:39]} 16... Qc8 {[%clk 0:02:03.6]} 17. Qxc8+ {[%clk 0:01:32.1]} 17... Bxc8
{[%clk 0:02:02.7]} 18. Bxa7 {[%clk 0:01:32]} 18... Bb4 {[%clk 0:02:01.1]} 19.
Re1+ {[%clk 0:01:30.9]} 19... Be6 {[%clk 0:01:57.7]} 20. Ng5 {[%clk 0:01:30.8]}
20... O-O {[%clk 0:01:49.6]} 21. Nxe6 {[%clk 0:01:30.1]} 21... Re8 {[%clk
0:01:49.2]} 22. Bd4 {[%clk 0:01:15]} 22... fxe6 {[%clk 0:01:46.1]} 23. Bxf6
{[%clk 0:01:08.7]} 23... gxf6 {[%clk 0:01:45]} 24. Re4 {[%clk 0:01:08.7]} 24...
Bd6 {[%clk 0:01:42.6]} 25. a4 {[%clk 0:00:59]} 25... Kf7 {[%clk 0:01:39.1]} 26.
a5 {[%clk 0:00:57.6]} 26... Bxh2 {[%clk 0:01:37.2]} 27. Rh4 {[%clk 0:00:52]}
27... Bg1 {[%clk 0:01:36.4]} 28. Rxh7+ {[%clk 0:00:46.6]} 28... Kg6 {[%clk
0:01:36.4]} 29. Rc7 {[%clk 0:00:46.4]} 29... Bxf2 {[%clk 0:01:36.3]} 30. Rxc6
{[%clk 0:00:45.8]} 30... e5 {[%clk 0:01:33.6]} 31. Ne4 {[%clk 0:00:39.9]} 31...
Bh4 {[%clk 0:01:30.2]} 32. a6 {[%clk 0:00:37.2]} 32... Kf5 {[%clk 0:01:29.3]}
33. Nd6+ {[%clk 0:00:37]} 1-0

[Event "Late-Titled-Tuesday-Blitz-September-05-2023"]
[Site "Chess.com"]
[Date "2023.09.05"]
[Round "6"]
[White "nihalsarin"]
[Black "GrigorGrigorov"]
[Result "1-0"]
[WhiteElo "3140"]
[BlackElo "2869"]
[TimeControl "180+1"]
[EndTime "15:05:31 PDT"]
[Termination "nihalsarin won by resignation"]

1. Nf3 {[%clk 0:03:00.9]} 1... Nf6 {[%clk 0:02:59.7]} 2. b3 {[%clk 0:03:01.6]}
2... b6 {[%clk 0:02:59.4]} 3. Bb2 {[%clk 0:03:02.5]} 3... Bb7 {[%clk 0:02:59.8]}
4. e3 {[%clk 0:03:03.4]} 4... e6 {[%clk 0:03:00]} 5. c4 {[%clk 0:03:04.1]} 5...
c5 {[%clk 0:03:00.2]} 6. d4 {[%clk 0:03:04.8]} 6... cxd4 {[%clk 0:02:58.8]} 7.
Nxd4 {[%clk 0:03:05.7]} 7... a6 {[%clk 0:02:57.7]} 8. Nd2 {[%clk 0:03:06.1]}
8... Be7 {[%clk 0:02:57.4]} 9. N2f3 {[%clk 0:03:06.6]} 9... O-O {[%clk
0:02:56.4]} 10. Be2 {[%clk 0:03:07.3]} 10... Qc7 {[%clk 0:02:55.6]} 11. O-O
{[%clk 0:03:07.7]} 11... d6 {[%clk 0:02:55.9]} 12. Rc1 {[%clk 0:03:08.4]} 12...
Nbd7 {[%clk 0:02:54.8]} 13. h3 {[%clk 0:03:09.2]} 13... Rac8 {[%clk 0:02:54.5]}
14. b4 {[%clk 0:03:09.9]} 14... Qb8 {[%clk 0:02:54.6]} 15. a3 {[%clk 0:03:10.6]}
15... Rfd8 {[%clk 0:02:53.8]} 16. Nd2 {[%clk 0:03:10.8]} 16... Ne5 {[%clk
0:02:51.9]} 17. N4f3 {[%clk 0:03:11.2]} 17... Ng6 {[%clk 0:02:49.2]} 18. Qb3
{[%clk 0:03:11.2]} 18... b5 {[%clk 0:02:43.1]} 19. cxb5 {[%clk 0:03:10.9]} 19...
axb5 {[%clk 0:02:42.8]} 20. Qd3 {[%clk 0:03:11.2]} 20... Bc6 {[%clk 0:02:14.4]}
21. Nb3 {[%clk 0:03:11.1]} 21... e5 {[%clk 0:01:25.2]} 22. Qd1 {[%clk
0:03:05.1]} 22... h6 {[%clk 0:01:12.4]} 23. Na5 {[%clk 0:03:05.2]} 23... Be8
{[%clk 0:01:09.4]} 24. Nd2 {[%clk 0:03:05.8]} 24... Rxc1 {[%clk 0:01:08.4]} 25.
Qxc1 {[%clk 0:03:06.7]} 25... Rc8 {[%clk 0:01:09]} 26. Qb1 {[%clk 0:03:07.4]}
26... Nh4 {[%clk 0:01:03]} 27. Rc1 {[%clk 0:03:07.9]} 27... Qa8 {[%clk
0:01:01.4]} 28. Nf3 {[%clk 0:03:06.5]} 28... Ng6 {[%clk 0:00:56.7]} 29. Rc2
{[%clk 0:03:02.7]} 29... Bd8 {[%clk 0:00:55]} 30. Nb3 {[%clk 0:02:59.2]} 30...
Bb6 {[%clk 0:00:55]} 31. Qc1 {[%clk 0:02:59.2]} 31... Rxc2 {[%clk 0:00:51.6]}
32. Qxc2 {[%clk 0:03:00.1]} 32... Bd7 {[%clk 0:00:51.4]} 33. Nbd2 {[%clk
0:02:56.3]} 33... Bc6 {[%clk 0:00:49.5]} 34. Bf1 {[%clk 0:02:51.3]} 34... Qb7
{[%clk 0:00:49.4]} 35. Ne1 {[%clk 0:02:51.4]} 35... Ne7 {[%clk 0:00:45.8]} 36.
Nb3 {[%clk 0:02:50.4]} 36... Bd7 {[%clk 0:00:44.1]} 37. Qd2 {[%clk 0:02:50.6]}
37... Qc7 {[%clk 0:00:43.2]} 38. Nc1 {[%clk 0:02:47.8]} 38... Nf5 {[%clk
0:00:42.4]} 39. Bd3 {[%clk 0:02:46.2]} 39... Nh4 {[%clk 0:00:42.2]} 40. Ne2
{[%clk 0:02:45.2]} 40... Qb7 {[%clk 0:00:41.5]} 41. Nc3 {[%clk 0:02:44.6]} 41...
Ba7 {[%clk 0:00:39.6]} 42. Bf1 {[%clk 0:02:44.8]} 42... Bb8 {[%clk 0:00:36.4]}
43. Qd3 {[%clk 0:02:44.2]} 43... e4 {[%clk 0:00:29.7]} 44. Qe2 {[%clk
0:02:43.3]} 44... d5 {[%clk 0:00:29.7]} 45. Nxb5 {[%clk 0:02:43.3]} 45... Nh7
{[%clk 0:00:19.5]} 46. Nd4 {[%clk 0:02:43.3]} 46... Ng5 {[%clk 0:00:17.8]} 47.
Qh5 {[%clk 0:02:43.5]} 47... Qc7 {[%clk 0:00:16.8]} 48. g3 {[%clk 0:02:39]}
48... Ng6 {[%clk 0:00:14.2]} 49. h4 {[%clk 0:02:37.7]} 49... Nh3+ {[%clk
0:00:14]} 50. Bxh3 {[%clk 0:02:37.8]} 50... Bxh3 {[%clk 0:00:14.9]} 51. Qxd5
{[%clk 0:02:38.6]} 51... Nxh4 {[%clk 0:00:10.3]} 52. Nc6 {[%clk 0:02:37.8]}
52... Be6 {[%clk 0:00:07.2]} 53. Qd8+ {[%clk 0:02:37.7]} 53... Qxd8 {[%clk
0:00:07.3]} 54. Nxd8 {[%clk 0:02:38.6]} 54... Nf5 {[%clk 0:00:06]} 55. Nxe6
{[%clk 0:02:38.7]} 55... fxe6 {[%clk 0:00:06.9]} 56. b5 {[%clk 0:02:37.5]} 1-0

[Event "Late-Titled-Tuesday-Blitz-September-05-2023"]
[Site "Chess.com"]
[Date "2023.09.05"]
[Round "6"]
[White "Dontmesswithme_2"]
[Black "Malev212"]
[Result "0-1"]
[WhiteElo "2484"]
[BlackElo "2637"]
[TimeControl "180+1"]
[EndTime "15:05:34 PDT"]
[Termination "Malev212 won by resignation"]

1. d4 {[%clk 0:03:00.9]} 1... Nf6 {[%clk 0:02:54.6]} 2. c4 {[%clk 0:02:59.8]}
2... e6 {[%clk 0:02:54.4]} 3. g3 {[%clk 0:02:56.5]} 3... c5 {[%clk 0:02:53.6]}
4. d5 {[%clk 0:02:56.5]} 4... exd5 {[%clk 0:02:53.6]} 5. cxd5 {[%clk 0:02:57.4]}
5... d6 {[%clk 0:02:53.8]} 6. Nc3 {[%clk 0:02:57.8]} 6... g6 {[%clk 0:02:54.2]}
7. Bg2 {[%clk 0:02:58.4]} 7... Bg7 {[%clk 0:02:54.7]} 8. Nf3 {[%clk 0:02:58.6]}
8... O-O {[%clk 0:02:55.3]} 9. O-O {[%clk 0:02:58.8]} 9... Re8 {[%clk
0:02:55.4]} 10. Bf4 {[%clk 0:02:58]} 10... h6 {[%clk 0:02:54.8]} 11. Re1 {[%clk
0:02:56.5]} 11... Bf5 {[%clk 0:02:47.2]} 12. h3 {[%clk 0:02:39.2]} 12... Ne4
{[%clk 0:02:40.3]} 13. Nxe4 {[%clk 0:02:34.4]} 13... Bxe4 {[%clk 0:02:39.5]} 14.
Nd2 {[%clk 0:02:34.9]} 14... Bxg2 {[%clk 0:02:36.3]} 15. Kxg2 {[%clk 0:02:35.8]}
15... g5 {[%clk 0:02:27.2]} 16. Be3 {[%clk 0:02:35.6]} 16... b5 {[%clk
0:02:26.4]} 17. a4 {[%clk 0:02:35.2]} 17... b4 {[%clk 0:02:11.1]} 18. Nc4 {[%clk
0:02:32.1]} 18... Qe7 {[%clk 0:02:10.4]} 19. f3 {[%clk 0:02:16.8]} 19... Nd7
{[%clk 0:02:08.8]} 20. Bf2 {[%clk 0:02:16.7]} 20... Nb6 {[%clk 0:02:05.8]} 21.
Na5 {[%clk 0:02:13]} 21... Bxb2 {[%clk 0:02:03.8]} 22. e4 {[%clk 0:02:12.1]}
22... Bxa1 {[%clk 0:01:56.9]} 23. Qxa1 {[%clk 0:02:12.6]} 23... f5 {[%clk
0:01:51.4]} 24. e5 {[%clk 0:02:00.9]} 24... dxe5 {[%clk 0:01:48.7]} 25. Nc6
{[%clk 0:01:58.3]} 25... Qd6 {[%clk 0:01:48.2]} 26. Nxe5 {[%clk 0:01:56]} 26...
Nxd5 {[%clk 0:01:46.5]} 27. Nc4 {[%clk 0:00:58.9]} 27... Qa6 {[%clk 0:01:31.7]}
28. Rxe8+ {[%clk 0:00:23.7]} 28... Rxe8 {[%clk 0:01:29.9]} 29. Qa2 {[%clk
0:00:24.3]} 29... Nc3 {[%clk 0:01:24.7]} 30. Qb3 {[%clk 0:00:23.9]} 30... Qxa4
{[%clk 0:01:24.6]} 31. Qb2 {[%clk 0:00:20.9]} 31... Re2 {[%clk 0:01:24.2]} 32.
Qc1 {[%clk 0:00:20]} 32... Qc2 {[%clk 0:01:22.7]} 33. Qf1 {[%clk 0:00:19]} 33...
Nd1 {[%clk 0:01:20.4]} 0-1

[Event "Late-Titled-Tuesday-Blitz-September-05-2023"]
[Site "Chess.com"]
[Date "2023.09.05"]
[Round "6"]
[White "AndreiITrifan"]
[Black "szachmistrz2500"]
[Result "1-0"]
[WhiteElo "2631"]
[BlackElo "2477"]
[TimeControl "180+1"]
[EndTime "15:05:37 PDT"]
[Termination "AndreiITrifan won by resignation"]

1. Nf3 {[%clk 0:03:00]} 1... c5 {[%clk 0:02:59.2]} 2. e3 {[%clk 0:02:58.4]} 2...
g6 {[%clk 0:02:58.3]} 3. d4 {[%clk 0:02:54]} 3... Bg7 {[%clk 0:02:58.3]} 4. Be2
{[%clk 0:02:52.4]} 4... Nf6 {[%clk 0:02:57.4]} 5. O-O {[%clk 0:02:49.4]} 5...
O-O {[%clk 0:02:57.2]} 6. dxc5 {[%clk 0:02:49.1]} 6... Qa5 {[%clk 0:02:55.9]} 7.
a3 {[%clk 0:02:49.3]} 7... Qxc5 {[%clk 0:02:54.8]} 8. b4 {[%clk 0:02:49.6]} 8...
Qc7 {[%clk 0:02:54.7]} 9. Bb2 {[%clk 0:02:49.9]} 9... d6 {[%clk 0:02:53.5]} 10.
c4 {[%clk 0:02:47.3]} 10... Nc6 {[%clk 0:02:50.8]} 11. Nc3 {[%clk 0:02:46.1]}
11... Be6 {[%clk 0:02:48]} 12. Rc1 {[%clk 0:02:44.9]} 12... Rac8 {[%clk
0:02:46.6]} 13. Qb3 {[%clk 0:02:33.8]} 13... a6 {[%clk 0:02:45]} 14. Nd5 {[%clk
0:02:24.2]} 14... Qd8 {[%clk 0:02:25.2]} 15. Rfd1 {[%clk 0:02:08.9]} 15... b5
{[%clk 0:01:46.7]} 16. Bxf6 {[%clk 0:02:01.8]} 16... exf6 {[%clk 0:01:41]} 17.
cxb5 {[%clk 0:01:49.8]} 17... axb5 {[%clk 0:01:32.6]} 18. Bxb5 {[%clk
0:01:50.7]} 18... Ne7 {[%clk 0:01:20.7]} 19. Rxc8 {[%clk 0:01:45]} 19... Nxc8
{[%clk 0:01:19.9]} 20. Qd3 {[%clk 0:01:37.8]} 20... f5 {[%clk 0:01:17.1]} 21.
Nf4 {[%clk 0:01:34.6]} 21... Bd7 {[%clk 0:01:16.5]} 22. Ba6 {[%clk 0:01:29.6]}
22... Ba4 {[%clk 0:01:13.9]} 23. Rc1 {[%clk 0:01:24.6]} 23... Ne7 {[%clk
0:01:08.7]} 24. h3 {[%clk 0:01:13.6]} 24... Qb6 {[%clk 0:01:06.1]} 25. Bc4
{[%clk 0:01:12.1]} 25... Rd8 {[%clk 0:01:00.3]} 26. Nd5 {[%clk 0:01:04.2]} 26...
Qa7 {[%clk 0:00:54.1]} 27. Ba2 {[%clk 0:00:55.2]} 27... Ra8 {[%clk 0:00:48.8]}
28. Rc7 {[%clk 0:00:52.7]} 1-0

[Event "Late-Titled-Tuesday-Blitz-September-05-2023"]
[Site "Chess.com"]
[Date "2023.09.05"]
[Round "6"]
[White "cthake"]
[Black "Colombiano07"]
[Result "0-1"]
[WhiteElo "1870"]
[BlackElo "2404"]
[TimeControl "180+1"]
[EndTime "15:05:37 PDT"]
[Termination "Colombiano07 won on time"]

1. e4 {[%clk 0:03:00.9]} 1... c6 {[%clk 0:03:00.1]} 2. d4 {[%clk 0:03:00.1]}
2... d5 {[%clk 0:03:01]} 3. f3 {[%clk 0:03:00.2]} 3... dxe4 {[%clk 0:02:59.8]}
4. fxe4 {[%clk 0:03:00]} 4... e5 {[%clk 0:02:59.3]} 5. Nf3 {[%clk 0:02:56.6]}
5... exd4 {[%clk 0:02:59.2]} 6. Qxd4 {[%clk 0:02:56.8]} 6... Qxd4 {[%clk
0:02:58.8]} 7. Nxd4 {[%clk 0:02:56.9]} 7... Nf6 {[%clk 0:02:58.3]} 8. Bd3 {[%clk
0:02:53.6]} 8... Bc5 {[%clk 0:02:57.5]} 9. Nb3 {[%clk 0:02:49.4]} 9... Bb6
{[%clk 0:02:57.8]} 10. a4 {[%clk 0:02:48.9]} 10... a6 {[%clk 0:02:57]} 11. a5
{[%clk 0:02:48.7]} 11... Ba7 {[%clk 0:02:57.4]} 12. Nc3 {[%clk 0:02:47.6]} 12...
Nbd7 {[%clk 0:02:57.4]} 13. Bf4 {[%clk 0:02:37.6]} 13... O-O {[%clk 0:02:55.9]}
14. O-O-O {[%clk 0:02:36.9]} 14... Re8 {[%clk 0:02:56]} 15. Rhe1 {[%clk
0:02:33.3]} 15... Ne5 {[%clk 0:02:56]} 16. h3 {[%clk 0:02:11.9]} 16... Nxd3+
{[%clk 0:02:51]} 17. Rxd3 {[%clk 0:01:49.8]} 17... Be6 {[%clk 0:02:50.8]} 18.
Nd4 {[%clk 0:01:42.3]} 18... Bc4 {[%clk 0:02:49.9]} 19. Rd2 {[%clk 0:01:37.5]}
19... Rad8 {[%clk 0:02:50.5]} 20. Nf5 {[%clk 0:01:19.2]} 20... Rxd2 {[%clk
0:02:43.9]} 21. Kxd2 {[%clk 0:01:18.6]} 21... Bf2 {[%clk 0:02:35]} 22. Rd1
{[%clk 0:00:46.2]} 22... Nxe4+ {[%clk 0:02:31.4]} 23. Nxe4 {[%clk 0:00:45.5]}
23... Rxe4 {[%clk 0:02:32.3]} 24. Kc3 {[%clk 0:00:38.4]} 24... h5 {[%clk
0:02:13.8]} 25. g3 {[%clk 0:00:17.9]} 25... Be6 {[%clk 0:02:08.5]} 26. Rd8+
{[%clk 0:00:16]} 26... Kh7 {[%clk 0:02:08.3]} 27. Nd6 {[%clk 0:00:14.6]} 27...
Bd4+ {[%clk 0:01:37.6]} 28. Kd3 {[%clk 0:00:12.3]} 28... Bf6 {[%clk 0:01:37.9]}
29. Nxe4 {[%clk 0:00:04.9]} 29... Bxd8 {[%clk 0:01:37.5]} 30. c4 {[%clk
0:00:03.9]} 30... Bxa5 {[%clk 0:01:37.4]} 31. Nd6 {[%clk 0:00:02.3]} 31... b5
{[%clk 0:01:29.8]} 32. cxb5 {[%clk 0:00:02.3]} 32... cxb5 {[%clk 0:01:30.7]} 0-1

[Event "Late-Titled-Tuesday-Blitz-September-05-2023"]
[Site "Chess.com"]
[Date "2023.09.05"]
[Round "6"]
[White "Haykoooo0o"]
[Black "leoduarte"]
[Result "1-0"]
[WhiteElo "2489"]
[BlackElo "2377"]
[TimeControl "180+1"]
[EndTime "15:05:40 PDT"]
[Termination "Haykoooo0o won by resignation"]

1. d4 {[%clk 0:03:00.9]} 1... d5 {[%clk 0:02:53.6]} 2. Nf3 {[%clk 0:03:01]} 2...
Nf6 {[%clk 0:02:50.8]} 3. e3 {[%clk 0:03:01]} 3... e6 {[%clk 0:02:49]} 4. Bd3
{[%clk 0:03:00.7]} 4... Bd6 {[%clk 0:02:49.7]} 5. Nbd2 {[%clk 0:03:00.6]} 5...
O-O {[%clk 0:02:50.2]} 6. Qe2 {[%clk 0:03:00.6]} 6... c5 {[%clk 0:02:48.2]} 7.
c3 {[%clk 0:03:00.6]} 7... Qc7 {[%clk 0:02:46]} 8. O-O {[%clk 0:03:00.1]} 8...
Nbd7 {[%clk 0:02:37.2]} 9. e4 {[%clk 0:02:53.7]} 9... dxe4 {[%clk 0:02:36.1]}
10. Nxe4 {[%clk 0:02:54]} 10... Nxe4 {[%clk 0:02:36.4]} 11. Qxe4 {[%clk
0:02:54.6]} 11... Nf6 {[%clk 0:02:37.1]} 12. Qh4 {[%clk 0:02:55]} 12... cxd4
{[%clk 0:02:34.1]} 13. Bg5 {[%clk 0:02:53.7]} 13... h6 {[%clk 0:02:13.2]} 14.
Bxh6 {[%clk 0:02:51.4]} 14... gxh6 {[%clk 0:02:02.8]} 15. Qxh6 {[%clk
0:02:49.6]} 15... e5 {[%clk 0:01:35.5]} 16. Qxf6 {[%clk 0:02:35.3]} 16... Qe7
{[%clk 0:01:33.6]} 17. Qxe7 {[%clk 0:02:04.7]} 17... Bxe7 {[%clk 0:01:34.5]} 18.
cxd4 {[%clk 0:02:05.4]} 18... exd4 {[%clk 0:01:32.5]} 19. Rfe1 {[%clk
0:01:51.6]} 19... Bf6 {[%clk 0:01:30.7]} 20. Ne5 {[%clk 0:01:45.3]} 20... Be6
{[%clk 0:01:17.3]} 21. f4 {[%clk 0:01:43.8]} 21... Rfd8 {[%clk 0:01:16]} 22. a3
{[%clk 0:01:41.1]} 22... Rac8 {[%clk 0:01:15.6]} 23. Rac1 {[%clk 0:01:40]} 23...
Bh4 {[%clk 0:01:03.3]} 24. g3 {[%clk 0:01:38.6]} 24... Bf6 {[%clk 0:01:03.6]}
25. Kf2 {[%clk 0:01:36]} 25... Bd5 {[%clk 0:01:02.3]} 26. Ke2 {[%clk 0:01:31.7]}
26... Rxc1 {[%clk 0:00:54]} 27. Rxc1 {[%clk 0:01:31.1]} 27... Bxe5 {[%clk
0:00:50.6]} 28. fxe5 {[%clk 0:01:30.4]} 28... Re8 {[%clk 0:00:51.3]} 29. Rc5
{[%clk 0:01:09.7]} 29... Rxe5+ {[%clk 0:00:51.2]} 30. Kd2 {[%clk 0:01:10.3]}
30... f6 {[%clk 0:00:42.7]} 31. Rxd5 {[%clk 0:01:10]} 1-0

[Event "Late-Titled-Tuesday-Blitz-September-05-2023"]
[Site "Chess.com"]
[Date "2023.09.05"]
[Round "6"]
[White "Dzidzik2203"]
[Black "chessS1r"]
[Result "1-0"]
[WhiteElo "2375"]
[BlackElo "2584"]
[TimeControl "180+1"]
[EndTime "15:05:51 PDT"]
[Termination "Dzidzik2203 won by resignation"]

1. d4 {[%clk 0:03:00.9]} 1... d5 {[%clk 0:03:00]} 2. c4 {[%clk 0:03:00.8]} 2...
e6 {[%clk 0:03:00.5]} 3. Nf3 {[%clk 0:03:01.4]} 3... Nf6 {[%clk 0:03:00.3]} 4.
Nc3 {[%clk 0:03:02]} 4... Bb4 {[%clk 0:03:00.3]} 5. Qa4+ {[%clk 0:03:01.3]} 5...
Nc6 {[%clk 0:02:59.3]} 6. e3 {[%clk 0:03:00.3]} 6... O-O {[%clk 0:02:55.6]} 7.
Qc2 {[%clk 0:03:00.3]} 7... b6 {[%clk 0:02:47.8]} 8. Bd2 {[%clk 0:02:51.1]} 8...
Bb7 {[%clk 0:02:39.1]} 9. cxd5 {[%clk 0:02:48.1]} 9... exd5 {[%clk 0:02:39.5]}
10. Bd3 {[%clk 0:02:48.1]} 10... Bd6 {[%clk 0:02:36.8]} 11. a3 {[%clk
0:02:47.3]} 11... a6 {[%clk 0:02:37.2]} 12. O-O {[%clk 0:02:47.3]} 12... Ne7
{[%clk 0:02:37.5]} 13. Ne5 {[%clk 0:02:43.3]} 13... c5 {[%clk 0:02:37.9]} 14. f4
{[%clk 0:02:38.2]} 14... Rc8 {[%clk 0:02:38.5]} 15. Be1 {[%clk 0:02:34.9]} 15...
cxd4 {[%clk 0:02:29.6]} 16. exd4 {[%clk 0:02:34.8]} 16... Ne4 {[%clk 0:02:29.6]}
17. Bh4 {[%clk 0:02:18.4]} 17... f6 {[%clk 0:02:26.2]} 18. Bxe4 {[%clk
0:02:18.7]} 18... dxe4 {[%clk 0:02:24.1]} 19. Qb3+ {[%clk 0:02:19]} 19... Kh8
{[%clk 0:01:58.4]} 20. Nf7+ {[%clk 0:02:18.4]} 20... Rxf7 {[%clk 0:01:58.9]} 21.
Qxf7 {[%clk 0:02:19.1]} 21... Rc7 {[%clk 0:01:39.8]} 22. Qe6 {[%clk 0:02:11.5]}
22... Ng6 {[%clk 0:01:28]} 23. Bg3 {[%clk 0:02:02.4]} 23... Re7 {[%clk
0:01:27.5]} 24. Qg4 {[%clk 0:02:01.7]} 24... Bc8 {[%clk 0:00:41.4]} 25. f5
{[%clk 0:02:00.6]} 25... Bxg3 {[%clk 0:00:41.9]} 26. Qxg3 {[%clk 0:01:57.2]}
26... Qxd4+ {[%clk 0:00:42.1]} 27. Kh1 {[%clk 0:01:57.8]} 27... Ne5 {[%clk
0:00:40.7]} 28. Rad1 {[%clk 0:01:56.2]} 28... Nd3 {[%clk 0:00:37.6]} 29. Nxe4
{[%clk 0:01:51.1]} 29... Qxe4 {[%clk 0:00:25.3]} 30. Qxd3 {[%clk 0:01:46.2]}
30... Qe5 {[%clk 0:00:22.7]} 31. Qc3 {[%clk 0:01:17.6]} 31... Re8 {[%clk
0:00:07.3]} 32. Rfe1 {[%clk 0:01:11.8]} 1-0

[Event "Late-Titled-Tuesday-Blitz-September-05-2023"]
[Site "Chess.com"]
[Date "2023.09.05"]
[Round "6"]
[White "Andrei_Skvortsov"]
[Black "IM_Tissir"]
[Result "1-0"]
[WhiteElo "2635"]
[BlackElo "2481"]
[TimeControl "180+1"]
[EndTime "15:05:53 PDT"]
[Termination "Andrei_Skvortsov won by resignation"]

1. e4 {[%clk 0:03:00.9]} 1... c5 {[%clk 0:02:59.6]} 2. d4 {[%clk 0:03:00.4]}
2... cxd4 {[%clk 0:02:58.8]} 3. Qxd4 {[%clk 0:03:01.3]} 3... Nc6 {[%clk
0:02:57.8]} 4. Qd3 {[%clk 0:03:01.6]} 4... e6 {[%clk 0:02:57.3]} 5. Nc3 {[%clk
0:03:01.8]} 5... a6 {[%clk 0:02:56.1]} 6. Be2 {[%clk 0:02:57.5]} 6... Nf6 {[%clk
0:02:53.4]} 7. Bf4 {[%clk 0:02:56.2]} 7... Qa5 {[%clk 0:02:41.6]} 8. Nf3 {[%clk
0:02:49.6]} 8... d6 {[%clk 0:02:38.2]} 9. O-O {[%clk 0:02:45.5]} 9... Ne5 {[%clk
0:02:31.4]} 10. Nxe5 {[%clk 0:02:42.4]} 10... dxe5 {[%clk 0:02:32.3]} 11. Be3
{[%clk 0:02:40.9]} 11... Be7 {[%clk 0:02:02.7]} 12. Qc4 {[%clk 0:02:37.5]} 12...
O-O {[%clk 0:02:01]} 13. f3 {[%clk 0:02:36.1]} 13... Bd7 {[%clk 0:01:59.7]} 14.
a3 {[%clk 0:02:34.2]} 14... Rac8 {[%clk 0:01:52.1]} 15. Qb3 {[%clk 0:02:34.3]}
15... Bc6 {[%clk 0:01:51.7]} 16. Kh1 {[%clk 0:02:31.9]} 16... Bc5 {[%clk
0:01:50.7]} 17. Bd2 {[%clk 0:02:30.3]} 17... Qc7 {[%clk 0:01:45.3]} 18. Rad1
{[%clk 0:02:28.6]} 18... h6 {[%clk 0:01:42.4]} 19. g4 {[%clk 0:02:27.1]} 19...
Bd4 {[%clk 0:01:18.4]} 20. Kg2 {[%clk 0:02:25]} 20... b5 {[%clk 0:01:14.7]} 21.
Na2 {[%clk 0:02:23.5]} 21... Rfd8 {[%clk 0:01:13]} 22. Nb4 {[%clk 0:02:20.6]}
22... Bb7 {[%clk 0:01:12.8]} 23. c3 {[%clk 0:02:20.7]} 23... Bc5 {[%clk
0:01:10.3]} 24. Nd3 {[%clk 0:02:20.5]} 24... Ba7 {[%clk 0:01:08.7]} 25. Be1
{[%clk 0:02:20.1]} 25... Nxe4 {[%clk 0:01:02.7]} 26. fxe4 {[%clk 0:02:21]} 26...
Bxe4+ {[%clk 0:01:02.9]} 27. Kh3 {[%clk 0:02:21]} 27... Qb7 {[%clk 0:00:34.7]}
28. Kg3 {[%clk 0:02:18.9]} 28... Bb8 {[%clk 0:00:30.8]} 29. Nb4 {[%clk
0:02:14.8]} 29... a5 {[%clk 0:00:28.4]} 30. Rxd8+ {[%clk 0:02:14.4]} 30... Rxd8
{[%clk 0:00:28.1]} 31. Na2 {[%clk 0:02:11.4]} 31... Bd5 {[%clk 0:00:27.9]} 32.
Qc2 {[%clk 0:02:11.1]} 32... e4+ {[%clk 0:00:25.4]} 33. Kh3 {[%clk 0:02:08.4]}
33... Bxa2 {[%clk 0:00:24.6]} 34. b3 {[%clk 0:02:08.6]} 34... Bxb3 {[%clk
0:00:10.5]} 35. Qxb3 {[%clk 0:02:09.5]} 35... Qc7 {[%clk 0:00:08]} 36. Bg3
{[%clk 0:02:07.8]} 36... Qc5 {[%clk 0:00:08.3]} 37. Rd1 {[%clk 0:02:01.5]} 37...
Rxd1 {[%clk 0:00:05.3]} 38. Qxd1 {[%clk 0:02:00.8]} 38... Bxg3 {[%clk
0:00:05.9]} 39. hxg3 {[%clk 0:02:01.7]} 39... Qxc3 {[%clk 0:00:06]} 40. Bxb5
{[%clk 0:01:53.1]} 40... Qxa3 {[%clk 0:00:05.8]} 41. Bc6 {[%clk 0:01:51.6]}
41... Qb4 {[%clk 0:00:04.4]} 42. Qc2 {[%clk 0:01:48.9]} 42... e3 {[%clk
0:00:03.8]} 43. Be4 {[%clk 0:01:45.7]} 43... Qd2 {[%clk 0:00:04.7]} 44. Qc8+
{[%clk 0:01:44.8]} 1-0